bitfinex/quotes_SOLUSD_20250527
["timestamp","ask_amount","ask_price","bid_price","bid_amount"]
[1748364162896,22.2857924,178.61,178.56,110.16603427]
[1748364163777,22.2857924,178.61,178.56,89.0]
[1748364163959,21.16603427,178.59,178.56,89.0]
[1748364164968,1.11994624,178.58,178.56,89.0]
[1748364168795,1.11994624,178.58,178.55,154.26603427]
[1748364169974,1.11988353,178.59,178.55,154.26603427]
[1748364170374,1.11988353,178.59,178.55,98.24]
[1748364170683,21.16603427,178.58,178.56,34.86]
[1748364171402,21.16603427,178.58,178.55,98.24]
[1748364171994,25.08562663,178.59,178.55,98.24]
[1748364173400,3.91959236,178.59,178.55,119.40603427]
[1748364174773,3.91959236,178.59,178.55,30.40603427]
[1748364177196,3.91959236,178.59,178.55,65.26603427]
[1748364178202,25.08562663,178.59,178.55,44.1]
[1748364178421,21.16603427,178.58,178.55,44.1]
[1748364179075,21.16603427,178.58,178.55,9.24]
[1748364179503,25.08562663,178.59,178.55,9.24]
[1748364180300,1.11988353,178.59,178.55,9.24]
[1748364180507,1.11988353,178.59,178.55,30.40603427]
[1748364180704,1.11988353,178.59,178.55,119.40603427]
[1748364180886,22.2859178,178.59,178.55,98.24]
[1748364181587,25.08562663,178.59,178.55,98.24]
[1748364181981,21.16603427,178.57,178.55,98.24]
[1748364182299,22.28610595,178.56,178.55,9.24]
[1748364182507,51.08628516,178.56,178.49,9.22]
[1748364182811,21.16603427,178.5,178.49,9.22]
[1748364182980,26.0,178.53,178.49,9.22]
[1748364183178,21.16603427,178.5,178.49,9.22]
[1748364183584,21.16603427,178.5,178.44,30.38603427]
[1748364183778,21.16603427,178.49,178.45,34.86]
[1748364184187,1.12057373,178.48,178.45,34.86]
[1748364184590,1.1205207,178.49,178.45,34.86]
[1748364184788,22.28655497,178.49,178.44,9.22]
[1748364184990,22.28655497,178.49,178.44,65.24603427]
[1748364185690,22.28655497,178.49,178.44,44.08]
[1748364185997,21.16603427,178.48,178.44,44.08]
[1748364186509,1.12059484,178.48,178.44,65.24603427]
[1748364186689,21.16603427,178.5,178.45,21.16603427]
[1748364187083,21.16603427,178.49,178.44,65.24603427]
[1748364187300,1.12038541,178.51,178.45,21.16603427]
[1748364187500,22.28641968,178.51,178.46,21.16603427]
[1748364188002,21.16603427,178.5,178.45,21.16603427]
[1748364188390,21.16603427,178.51,178.46,21.16603427]
[1748364190503,1.12044817,178.5,178.46,21.16603427]
[1748364190702,22.28648244,178.5,178.45,21.16603427]
[1748364191399,21.16603427,178.51,178.46,21.16603427]
[1748364192717,1.12044817,178.5,178.46,21.16603427]
[1748364193310,1.12044817,178.5,178.44,35.22]
[1748364193311,22.28648244,178.5,178.44,35.22]
[1748364193518,21.16603427,178.48,178.44,35.22]
[1748364193696,1.12044817,178.5,178.44,35.22]
[1748364193900,21.16603427,178.48,178.44,70.08]
[1748364194287,21.16603427,178.49,178.44,70.08]
[1748364194693,1.12000896,178.57,178.48,21.16603427]
[1748364194893,21.16603427,178.55,178.5,21.16603427]
[1748364195391,1.12000896,178.57,178.49,56.02603427]
[1748364195594,21.16603427,178.54,178.49,56.02603427]
[1748364195809,1.1202599,178.53,178.49,56.02603427]
[1748364196113,22.28629417,178.53,178.49,34.86]
[1748364198012,1.1202599,178.53,178.49,56.02603427]
[1748364198803,21.16603427,178.55,178.5,30.40603427]
[1748364199412,22.28618823,178.55,178.5,30.40603427]
[1748364201108,1.1202599,178.53,178.5,9.24]
[1748364202422,2.80007845,178.57,178.5,9.24]
[1748364202423,1.12007168,178.56,178.5,9.24]
[1748364202719,21.16603427,178.54,178.5,9.24]
[1748364202899,21.16603427,178.52,178.5,9.24]
[1748364203097,22.28641968,178.51,178.5,9.24]
[1748364204699,22.28637839,178.52,178.5,9.24]
[1748364204903,1.12034412,178.52,178.5,9.24]
[1748364205099,2.80013118,178.57,178.51,21.16603427]
[1748364205304,21.16603427,178.56,178.51,21.16603427]
[1748364205602,21.16603427,178.56,178.52,21.16603427]
[1748364206008,21.16603427,178.56,178.51,21.16603427]
[1748364206409,1.11994624,178.58,178.52,21.16603427]
[1748364206629,21.16603427,178.57,178.51,89.0]
[1748364206823,21.16603427,178.57,178.52,21.16603427]
[1748364207210,1.12007168,178.56,178.52,21.16603427]
[1748364207530,21.16603427,178.55,178.52,34.86]
[1748364207724,1.12007168,178.56,178.52,34.86]
[1748364207927,21.16603427,178.55,178.52,34.86]
[1748364208105,1.12007168,178.56,178.52,56.02603427]
[1748364208720,22.28610595,178.56,178.52,34.86]
[1748364209514,21.16603427,178.55,178.52,34.86]
[1748364209725,1.12007168,178.56,178.52,34.86]
[1748364209726,22.28610595,178.56,178.52,34.86]
[1748364210037,21.16603427,178.55,178.51,123.86]
[1748364210328,21.16603427,178.55,178.51,34.86]
[1748364210518,21.16603427,178.55,178.51,56.02603427]
[1748364211201,22.28610595,178.56,178.52,21.16603427]
[1748364211415,1.12007168,178.56,178.52,21.16603427]
[1748364212008,1.12007168,178.56,178.51,34.86]
[1748364212201,1.12007168,178.56,178.52,21.16603427]
[1748364213321,21.16603427,178.55,178.5,9.24]
[1748364213518,2.79981713,178.59,178.5,44.1]
[1748364213519,21.16603427,178.54,178.5,44.1]
[1748364214703,21.16603427,178.55,178.5,65.26603427]
[1748364215308,1.12019715,178.54,178.5,65.26603427]
[1748364215922,1.12013875,178.55,178.51,21.16603427]
[1748364216124,1.11975813,178.61,178.54,21.16603427]
[1748364216427,21.16603427,178.6,178.55,21.16603427]
[1748364217527,1.11988353,178.59,178.55,21.16603427]
[1748364218415,22.2859178,178.59,178.55,21.16603427]
[1748364218814,22.2859178,178.59,178.54,21.16603427]
[1748364220615,1.11963276,178.63,178.56,21.16603427]
[1748364220931,21.16603427,178.61,178.56,21.16603427]
[1748364221116,3.91871466,178.63,178.55,56.00603427]
[1748364221117,21.16603427,178.6,178.55,56.00603427]
[1748364222039,1.11988353,178.59,178.55,145.00603427]
[1748364223146,2.7990819,178.63,178.55,145.00603427]
[1748364223470,21.16603427,178.6,178.55,145.00603427]
[1748364224936,21.16603427,178.61,178.56,21.16603427]
[1748364225759,2.79868789,178.66,178.57,21.16603427]
[1748364225923,21.16603427,178.64,178.59,21.16603427]
[1748364226123,22.28554168,178.65,178.6,21.16603427]
[1748364226545,22.28554168,178.65,178.6,56.00603427]
[1748364227638,21.16603427,178.64,178.6,34.84]
[1748364229543,1.11963276,178.63,178.6,34.84]
[1748364229748,1.11963276,178.63,178.6,56.00603427]
[1748364230943,1.11957008,178.64,178.6,56.00603427]
[1748364233149,21.16603427,178.64,178.6,34.84]
[1748364233824,21.16603427,178.62,178.59,115.0]
[1748364234043,9.51421534,178.68,178.59,26.0]
[1748364234044,21.16603427,178.63,178.59,26.0]
[1748364234942,21.16603427,178.63,178.58,55.98603427]
[1748364235150,21.16603427,178.59,178.57,89.0]
[1748364235331,21.16603427,178.59,178.56,44.04]
[1748364235537,21.16603427,178.6,178.56,44.04]
[1748364235960,3.91893404,178.62,178.56,44.04]
[1748364235961,25.08496831,178.62,178.56,65.20603427]
[1748364236330,25.08496831,178.62,178.56,30.38603427]
[1748364236530,21.16603427,178.61,178.57,34.82]
[1748364237346,22.28585509,178.6,178.57,34.82]
[1748364237945,1.11982082,178.6,178.57,34.82]
[1748364238347,22.28585509,178.6,178.57,34.82]
[1748364240761,1.11982082,178.6,178.57,34.82]
[1748364241341,21.16603427,178.59,178.56,9.22]
[1748364241945,3.91937289,178.6,178.56,9.22]
[1748364241946,25.08540716,178.6,178.56,9.22]
[1748364245358,22.28585509,178.6,178.56,9.22]
[1748364247449,21.16603427,178.57,178.51,26.0]
[1748364247746,1.11982082,178.6,178.49,89.0]
[1748364247747,21.16603427,178.52,178.49,89.0]
[1748364248045,21.16603427,178.5,178.48,9.2]
[1748364248977,26.0,178.55,178.48,9.2]
[1748364249272,21.16603427,178.5,178.48,9.2]
[1748364249576,1.12051095,178.49,178.48,9.2]
[1748364249938,2.80042526,178.55,178.48,30.36603427]
[1748364250138,23.96645953,178.55,178.5,21.16603427]
[1748364250368,21.16603427,178.54,178.49,21.16603427]
[1748364250759,21.16603427,178.54,178.49,110.16603427]
[1748364251257,21.16603427,178.54,178.5,34.82]
[1748364251958,1.1202599,178.53,178.5,34.82]
[1748364254365,22.28629417,178.53,178.5,34.82]
[1748364255148,22.28629417,178.53,178.49,89.0]
[1748364255349,22.28629417,178.53,178.49,123.82]
[1748364255976,22.28629417,178.53,178.49,144.98603427]
[1748364255977,1.1202599,178.53,178.49,144.98603427]
[1748364256562,3.91981184,178.58,178.49,144.98603427]
[1748364256764,21.16603427,178.54,178.49,144.98603427]
[1748364257276,3.91981184,178.58,178.5,21.16603427]
[1748364257478,21.16603427,178.54,178.5,21.16603427]
[1748364258376,21.16603427,178.55,178.5,21.16603427]
[1748364258585,21.16603427,178.57,178.52,21.16603427]
[1748364258756,2.7998656,178.58,178.49,129.42252662]
[1748364258757,23.96589987,178.58,178.53,21.16603427]
[1748364258956,23.96589987,178.58,178.53,55.98603427]
[1748364259779,21.16603427,178.57,178.53,34.82]
[1748364260077,21.16603427,178.56,178.53,34.82]
[1748364261019,21.16603427,178.57,178.53,34.82]
[1748364261482,3.91981184,178.58,178.53,55.98603427]
[1748364261663,25.08584611,178.58,178.53,55.98603427]
[1748364263796,21.16603427,178.57,178.53,34.82]
[1748364264696,25.08584611,178.58,178.53,55.98603427]
[1748364264901,1.11994624,178.58,178.53,55.98603427]
[1748364265063,1.11994624,178.58,178.54,21.16603427]
[1748364268391,1.11994624,178.58,178.55,21.16603427]
[1748364269775,1.11988353,178.59,178.55,21.16603427]
[1748364270167,1.11988353,178.59,178.56,21.16603427]
[1748364271771,1.11982082,178.6,178.56,21.16603427]
[1748364271973,1.11982082,178.6,178.57,21.16603427]
[1748364272176,1.11982082,178.6,178.57,65.18603427]
[1748364272869,1.11975813,178.61,178.57,65.18603427]
[1748364273391,1.11975813,178.61,178.58,21.16603427]
[1748364273579,1.11963276,178.63,178.58,21.16603427]
[1748364273774,1.11963276,178.63,178.6,21.16603427]
[1748364274675,1.11957008,178.64,178.6,21.16603427]
[1748364275088,1.11957008,178.64,178.61,21.16603427]
[1748364275275,1.11957008,178.64,178.6,21.16603427]
[1748364276886,1.11957008,178.64,178.61,21.16603427]
[1748364277885,1.11957008,178.64,178.62,21.16603427]
[1748364278305,1.11957008,178.64,178.62,55.98603427]
[1748364278993,25.0841403,178.66,178.62,34.82]
[1748364280286,3.91810603,178.66,178.62,55.98603427]
[1748364281487,25.0841403,178.66,178.62,34.82]
[1748364281782,3.91810603,178.66,178.62,55.98603427]
[1748364282185,3.91810603,178.66,178.63,21.16603427]
[1748364283088,2.79866128,178.66,178.63,21.16603427]
[1748364283912,1.1193821,178.67,178.64,21.16603427]
[1748364285077,1.11931945,178.68,178.64,21.16603427]
[1748364285609,1.11931945,178.68,178.67,21.16603427]
[1748364285813,2.79777918,178.72,178.67,55.96603427]
[1748364285986,181.49405136,178.77,178.71,21.16603427]
[1748364285987,1.11894371,178.74,178.71,21.16603427]
[1748364287606,3.91618719,178.75,178.71,21.16603427]
[1748364288099,3.91618719,178.75,178.72,21.16603427]
[1748364289484,2.79730608,178.75,178.72,21.16603427]
[1748364289882,21.16603427,178.84,178.74,68.33206854]
[1748364290106,6.70953312,178.85,178.8,21.16603427]
[1748364290107,27.87556739,178.85,178.8,21.16603427]
[1748364290286,3.91389432,178.85,178.8,21.16603427]
[1748364290713,3.91389432,178.85,178.81,21.16603427]
[1748364291083,21.16603427,178.82,178.78,9.2]
[1748364291288,21.16603427,178.8,178.78,9.2]
[1748364291511,21.16603427,178.81,178.78,9.2]
[1748364291693,2.7956388,178.85,178.78,9.2]
[1748364292008,21.16603427,178.81,178.78,9.2]
[1748364292190,2.7956388,178.85,178.78,9.2]
[1748364292386,21.16603427,178.81,178.78,9.2]
[1748364292815,1.11856823,178.8,178.78,9.2]
[1748364293692,1.11856823,178.8,178.78,30.36603427]
[1748364294480,1.11856823,178.8,178.78,9.2]
[1748364295215,22.2846025,178.8,178.78,9.2]
[1748364295510,21.16603427,178.79,178.78,9.2]
[1748364295698,22.2846025,178.8,178.78,9.2]
[1748364296587,1.11856823,178.8,178.78,9.2]
[1748364298794,1.11850567,178.81,178.78,9.2]
[1748364300905,22.28453994,178.81,178.78,9.2]
[1748364301401,21.16603427,178.79,178.78,9.2]
[1748364302714,21.16603427,178.8,178.78,9.2]
[1748364303212,1.11863079,178.79,178.78,9.2]
[1748364303400,1.11863079,178.79,178.78,8.38027427]
[1748364305310,1.11850567,178.81,178.78,8.38027427]
[1748364308217,8.33333333,178.94,178.83,26.0]
[1748364308424,21.16603427,178.91,178.86,21.16603427]
[1748364308717,21.16603427,178.9,178.85,21.16603427]
[1748364309420,21.16603427,178.9,178.85,23.91215897]
[1748364310223,1.11800547,178.89,178.85,23.91215897]
[1748364310402,1.11775554,178.93,178.86,26.0]
[1748364310610,22.28378981,178.93,178.87,21.16603427]
[1748364310805,3.9121444,178.93,178.86,26.0]
[1748364311007,21.16603427,178.88,178.84,69.94]
[1748364311222,21.16603427,178.87,178.84,43.94]
[1748364311424,21.16603427,178.86,178.84,9.18]
[1748364311727,21.16603427,178.85,178.84,9.18]
[1748364312295,22.28428979,178.85,178.84,9.18]
[1748364312535,25.07992859,178.85,178.79,9.18]
[1748364312705,21.16603427,178.81,178.79,9.18]
[1748364313103,21.16603427,178.8,178.79,9.18]
[1748364314243,22.2846025,178.8,178.79,9.18]
[1748364315621,1.11856823,178.8,178.79,9.18]
[1748364316214,1.11844312,178.82,178.79,30.34603427]
[1748364316412,1.11844312,178.82,178.8,34.94]
[1748364317425,22.28447739,178.82,178.8,34.94]
[1748364317631,21.16603427,178.81,178.79,9.18]
[1748364317826,21.16603427,178.8,178.79,9.18]
[1748364318324,22.2846025,178.8,178.79,9.18]
[1748364318812,1.11856823,178.8,178.79,9.18]
[1748364319015,1.11838058,178.83,178.79,30.34603427]
[1748364319230,1.11838058,178.83,178.79,98.18]
[1748364319517,22.28441485,178.83,178.79,98.18]
[1748364320235,1.11838058,178.83,178.79,98.18]
[1748364320429,22.28441485,178.83,178.79,98.18]
[1748364320637,21.16603427,178.8,178.79,9.18]
[1748364322615,22.2846025,178.8,178.79,9.18]
[1748364328641,22.2846025,178.8,178.75,133.04]
[1748364328840,21.16603427,178.78,178.75,9.18]
[1748364329039,21.16603427,178.76,178.75,9.18]
[1748364329521,21.16603427,178.76,178.7,9.18]
[1748364329725,21.16603427,178.71,178.68,89.66]
[1748364330340,1.11919418,178.7,178.68,89.66]
[1748364331147,1.11919418,178.7,178.68,124.52]
[1748364331334,1.11888111,178.75,178.68,145.68603427]
[1748364331541,1.11888111,178.75,178.69,21.16603427]
[1748364331542,21.16603427,178.74,178.69,21.16603427]
[1748364332645,22.28501315,178.74,178.69,21.16603427]
[1748364333428,21.16603427,178.73,178.68,145.68603427]
[1748364334146,21.16603427,178.72,178.69,34.92]
[1748364334328,21.16603427,178.71,178.69,34.92]
[1748364334528,1.11925681,178.69,178.68,89.66]
[1748364334827,1.11925681,178.69,178.68,9.18]
[1748364335050,22.28529108,178.69,178.68,9.18]
[1748364335221,1.11875594,178.77,178.68,9.18]
[1748364335420,21.16603427,178.73,178.68,30.34603427]
[1748364336033,21.16603427,178.73,178.68,35.9425292]
[1748364336242,21.16603427,178.74,178.69,21.16603427]
[1748364336536,21.16603427,178.74,178.7,34.92]
[1748364336755,22.28500627,178.74,178.7,34.92]
[1748364337917,21.16603427,178.74,178.7,34.92]
[1748364338121,21.16603427,178.75,178.7,82.08603427]
[1748364338955,21.16603427,178.74,178.7,60.92]
[1748364339447,21.16603427,178.72,178.7,34.92]
[1748364339751,21.16603427,178.71,178.68,9.18]
[1748364339921,21.16603427,178.7,178.68,9.18]
[1748364340929,22.28524208,178.7,178.68,9.18]
[1748364341131,21.16603427,178.7,178.68,9.18]
[1748364341431,1.1191256,178.72,178.68,9.18]
[1748364341432,21.16603427,178.71,178.68,9.18]
[1748364341646,1.11898193,178.74,178.7,21.16603427]
[1748364341842,1.11898193,178.74,178.7,110.16603427]
[1748364342149,22.2850162,178.74,178.7,89.0]
[1748364343038,21.16603427,178.72,178.7,89.0]
[1748364343230,21.16603427,178.71,178.7,89.0]
[1748364343632,21.16603427,178.72,178.7,89.0]
[1748364344246,21.16603427,178.71,178.7,89.0]
[1748364344453,21.16603427,178.72,178.7,89.0]
[1748364345136,1.11913155,178.71,178.7,89.0]
[1748364346229,22.28516582,178.71,178.68,9.18]
[1748364346430,21.16603427,178.69,178.68,9.18]
[1748364346659,1.11913155,178.71,178.68,9.18]
[1748364346852,21.16603427,178.69,178.68,9.18]
[1748364347235,22.28529108,178.69,178.68,9.18]
[1748364347931,1.11925681,178.69,178.68,9.18]
[1748364348742,22.28529108,178.69,178.68,9.18]
[1748364353543,25.08343311,178.69,178.63,9.28]
[1748364353736,21.16603427,178.66,178.63,44.14]
[1748364354041,21.16603427,178.67,178.63,9.28]
[1748364354548,3.91739884,178.69,178.63,30.44603427]
[1748364354775,21.16603427,178.68,178.63,30.44603427]
[1748364355340,21.16603427,178.67,178.63,9.28]
[1748364356072,1.11944475,178.66,178.63,9.28]
[1748364357458,22.28547902,178.66,178.63,9.28]
[1748364358163,21.16603427,178.65,178.63,9.28]
[1748364358350,21.16603427,178.64,178.63,9.28]
[1748364359343,22.28560435,178.64,178.63,9.28]
[1748364359764,1.11957008,178.64,178.63,9.28]
[1748364361544,22.28554168,178.65,178.63,9.28]
[1748364362045,1.11913155,178.71,178.64,21.16603427]
[1748364362245,21.16603427,178.7,178.65,55.96603427]
[1748364362462,21.16603427,178.68,178.65,34.8]
[1748364362661,21.16603427,178.68,178.64,34.8]
[1748364363244,21.16603427,178.69,178.64,55.96603427]
[1748364363467,1.11931945,178.68,178.65,21.16603427]
[1748364363657,3.916406,178.74,178.67,21.16603427]
[1748364363852,25.08244027,178.74,178.69,21.16603427]
[1748364364060,21.16603427,178.73,178.69,44.0]
[1748364366269,1.11906893,178.72,178.69,44.0]
[1748364367783,22.2851032,178.72,178.69,44.0]
[1748364367966,21.16603427,178.71,178.69,44.0]
[1748364368152,1.11906893,178.72,178.69,44.0]
[1748364368153,21.16603427,178.7,178.69,44.0]
[1748364368354,1.11919418,178.7,178.69,44.0]
[1748364370968,1.11919418,178.7,178.69,9.2]
[1748364372272,1.11906893,178.72,178.69,9.2]
[1748364373670,21.16603427,178.71,178.69,9.2]
[1748364374370,1.11919418,178.7,178.69,9.2]
[1748364377479,22.28522845,178.7,178.69,9.2]
[1748364378064,1.11919418,178.7,178.69,9.2]
[1748364380062,22.28522845,178.7,178.69,9.2]
[1748364382288,25.0832139,178.7,178.66,34.78]
[1748364384496,3.91717963,178.7,178.66,55.94603427]
[1748364387693,25.0832139,178.7,178.66,34.78]
[1748364390379,25.0832139,178.7,178.65,35.2]
[1748364390574,25.0832139,178.7,178.65,69.98]
[1748364391299,1.11919418,178.7,178.66,21.16603427]
[1748364391478,1.11919418,178.7,178.68,21.16603427]
[1748364391683,1.11919418,178.7,178.67,21.16603427]
[1748364391897,1.11919418,178.7,178.68,9.2]
[1748364392202,1.11919418,178.7,178.68,30.36603427]
[1748364393098,3.91674126,178.72,178.68,30.36603427]
[1748364393283,25.08277553,178.72,178.68,9.2]
[1748364396002,21.16603427,178.7,178.68,9.2]
[1748364396301,21.16603427,178.69,178.63,9.18]
[1748364396608,21.16603427,178.66,178.63,9.18]
[1748364397197,21.16603427,178.67,178.63,9.18]
[1748364397506,21.16603427,178.68,178.63,30.34603427]
[1748364397881,1.11931945,178.68,178.64,21.16603427]
[1748364398787,22.28535372,178.68,178.64,21.16603427]
[1748364398981,22.28535372,178.68,178.63,30.34603427]
[1748364399880,1.11944475,178.66,178.63,9.18]
[1748364401497,21.16603427,178.67,178.63,9.18]
[1748364402786,21.16603427,178.66,178.63,9.18]
[1748364402988,1.11957008,178.64,178.63,9.18]
[1748364403284,21.16603427,178.65,178.63,9.18]
[1748364403798,9.18,178.75,178.63,9.18]
[1748364403994,21.16603427,178.68,178.63,30.34603427]
[1748364404810,21.16603427,178.69,178.64,21.16603427]
[1748364405012,1.11931945,178.68,178.65,21.16603427]
[1748364405399,1.11931945,178.68,178.65,55.94603427]
[1748364406292,1.11931945,178.68,178.65,34.78]
[1748364406692,22.28535372,178.68,178.65,34.78]
[1748364407507,25.08365235,178.68,178.64,89.0]
[1748364408409,25.08365235,178.68,178.63,43.96]
[1748364408621,25.08365235,178.68,178.63,65.12603427]
[1748364410299,21.16603427,178.69,178.63,65.12603427]
[1748364410498,21.16603427,178.69,178.64,21.16603427]
[1748364412027,21.16603427,178.68,178.63,43.96]
[1748364412395,25.08387162,178.67,178.63,43.96]
[1748364412737,21.16603427,178.65,178.63,9.18]
[1748364413818,1.11957008,178.64,178.63,9.18]
[1748364414206,22.28560435,178.64,178.63,9.18]
[1748364415523,1.11957008,178.64,178.63,9.18]
[1748364417512,22.28560435,178.64,178.63,9.18]
[1748364419528,1.11957008,178.64,178.63,9.18]
[1748364420003,1.11944475,178.66,178.63,9.18]
[1748364420211,1.11944475,178.66,178.64,21.16603427]
[1748364420419,1.11944475,178.66,178.64,34.78]
[1748364421912,1.1193821,178.67,178.64,34.78]
[1748364423705,1.1193821,178.67,178.65,21.16603427]
[1748364424016,23.96393632,178.71,178.65,21.16603427]
[1748364424621,21.16603427,178.7,178.65,21.16603427]
[1748364425705,1.11925681,178.69,178.65,21.16603427]
[1748364427037,3.91739884,178.69,178.65,21.16603427]
[1748364427406,3.91739884,178.69,178.64,34.78]
[1748364427621,3.91739884,178.69,178.65,21.16603427]
[1748364430914,21.16603427,178.67,178.63,35.18]
[1748364432217,21.16603427,178.68,178.63,56.34603427]
[1748364432744,21.16603427,178.68,178.63,30.34603427]
[1748364432927,3.91783735,178.67,178.63,30.34603427]
[1748364433128,25.08387162,178.67,178.63,9.18]
[1748364433330,21.16603427,178.65,178.63,9.18]
[1748364434543,21.16603427,178.66,178.63,9.18]
[1748364434749,3.91783735,178.67,178.63,9.18]
[1748364435043,21.16603427,178.66,178.63,9.18]
[1748364436055,21.16603427,178.65,178.63,9.18]
[1748364436230,21.16603427,178.64,178.63,9.18]
[1748364436937,22.28560435,178.64,178.63,9.18]
[1748364438576,1.11957008,178.64,178.63,9.18]
[1748364438951,1.11950741,178.65,178.63,9.18]
[1748364440039,21.16603427,178.69,178.63,30.34603427]
[1748364440240,1.11925681,178.69,178.65,21.16603427]
[1748364440431,1.11925681,178.69,178.66,21.16603427]
[1748364441369,3.9172207,178.7,178.66,21.16603427]
[1748364444059,25.08325497,178.7,178.65,21.16603427]
[1748364445034,25.08325497,178.7,178.64,123.78]
[1748364445035,21.16603427,178.68,178.64,123.78]
[1748364445463,21.16603427,178.67,178.64,89.0]
[1748364446160,1.11944475,178.66,178.64,89.0]
[1748364446362,22.28547902,178.66,178.64,89.0]
[1748364447549,1.11944475,178.66,178.64,89.0]
[1748364449759,1.11944475,178.66,178.63,9.18]
[1748364451156,22.28547902,178.66,178.63,9.18]
[1748364451663,1.11944475,178.66,178.63,9.18]
[1748364452946,1.11944475,178.66,178.64,21.16603427]
[1748364453163,26.0,178.66,178.64,21.16603427]
[1748364453543,26.0,178.66,178.63,30.34603427]
[1748364453754,26.0,178.68,178.65,21.16603427]
[1748364453961,1.11925681,178.69,178.66,21.16603427]
[1748364454571,3.91739884,178.69,178.65,55.92603427]
[1748364454770,1.11925681,178.69,178.66,21.16603427]
[1748364455770,27.11925681,178.69,178.67,21.16603427]
[1748364456064,27.11925681,178.69,178.66,21.16603427]
[1748364457253,25.08327423,178.7,178.65,144.92603427]
[1748364457455,3.91723996,178.7,178.66,21.16603427]
[1748364457950,1.11919418,178.7,178.68,21.16603427]
[1748364458153,2.79763192,178.73,178.69,55.92603427]
[1748364458352,1.11888111,178.75,178.72,21.16603427]
[1748364458857,3.9160839,178.75,178.71,21.16603427]
[1748364459175,3.9160839,178.75,178.7,21.16603427]
[1748364460061,25.08211817,178.75,178.7,21.16603427]
[1748364460466,25.08211817,178.75,178.69,65.10603427]
[1748364461171,3.9160839,178.75,178.7,21.16603427]
[1748364461373,3.9160839,178.75,178.71,21.16603427]
[1748364462882,25.08211817,178.75,178.7,21.16603427]
[1748364463085,21.16603427,178.74,178.69,43.94]
[1748364463257,3.9160839,178.75,178.7,21.16603427]
[1748364463458,25.08211817,178.75,178.7,21.16603427]
[1748364463666,3.9160839,178.75,178.71,21.16603427]
[1748364464478,3.9160839,178.75,178.69,43.94]
[1748364464479,25.08211817,178.75,178.7,21.16603427]
[1748364466474,25.08211817,178.75,178.69,43.94]
[1748364466677,25.08211817,178.75,178.7,21.16603427]
[1748364466873,2.79720279,178.75,178.7,21.16603427]
[1748364467094,23.96323706,178.75,178.7,21.16603427]
[1748364467558,23.96323706,178.75,178.7,110.16603427]
[1748364468183,2.79720279,178.75,178.71,21.16603427]
[1748364468782,3.9160839,178.75,178.71,21.16603427]
[1748364468983,1.11888111,178.75,178.74,21.16603427]
[1748364469657,1.11888111,178.75,178.73,55.90603427]
[1748364469865,1.11888111,178.75,178.74,21.16603427]
[1748364470777,3.91550581,178.78,178.74,21.16603427]
[1748364471103,1.11869336,178.78,178.75,21.16603427]
[1748364471462,1.11869336,178.78,178.76,21.16603427]
[1748364471684,2.79589151,178.84,178.77,55.90603427]
[1748364471871,28.79589151,178.84,178.79,21.16603427]
[1748364472408,1.11838058,178.83,178.79,21.16603427]
[1748364472698,3.91433204,178.83,178.79,21.16603427]
[1748364475095,3.91433204,178.83,178.8,21.16603427]
[1748364475885,3.91433204,178.83,178.81,21.16603427]
[1748364476793,2.79595146,178.83,178.81,21.16603427]
[1748364477165,1.11825552,178.85,178.81,30.34603427]
[1748364477990,3.91389432,178.85,178.81,30.34603427]
[1748364478584,1.11806797,178.88,178.86,26.0]
[1748364478770,3.91220487,178.93,178.87,65.66603427]
[1748364478972,3.91220487,178.93,178.87,44.5]
[1748364479170,25.07823914,178.93,178.87,44.5]
[1748364479549,3.91220487,178.93,178.88,21.16603427]
[1748364479716,3.91220487,178.93,178.87,44.5]
[1748364479999,3.91220487,178.93,178.88,21.16603427]
[1748364480202,25.07823914,178.93,178.88,21.16603427]
[1748364480584,25.07823914,178.93,178.87,44.5]
[1748364480790,25.07823914,178.93,178.87,65.66603427]
[1748364481482,3.91220487,178.93,178.87,65.66603427]
[1748364481784,25.07823914,178.93,178.87,44.5]
[1748364481974,25.07823914,178.93,178.87,65.66603427]
[1748364482596,25.07823914,178.93,178.87,65.62603427]
[1748364483113,21.16603427,178.92,178.87,65.62603427]
[1748364483474,21.16603427,178.92,178.87,44.46]
[1748364483686,21.16603427,178.92,178.87,65.62603427]
[1748364484919,21.16603427,178.9,178.87,9.18]